Cogmind - Beta 14 @@@ ROGUE MODE // 2024.10.05 @ 15:13:40 Player: Corvi Result: Destroyed by 00-Z05(R) with Subdweller Shrapnel Launcher Performance ------------- Evolutions (0) 0 Regions Visited (2) 400 Robots Destroyed (30) 150 Value Destroyed (653) 653 Prototype IDs (0) 0 Alien Tech Used (0) 0 Bonus (0) 0 TOTAL SCORE: 1203 Bonus ------- None Cogmind --------- Core Integrity 0/250 Matter 17/300 Energy 100/100 System Corruption 0% Temperature Cool (0) Movement Core (100) Ox1 Location -10/Subcaves Parts ------- > --- POWER (1) -------- (None) > --- PROPULSION (2) --- (None) > --- UTILITY (2) ------ Small Storage Unit Sensor Array > --- WEAPON (2) ------- (None) > --- INVENTORY (8) ---- Light Ion Engine Structural Scanner Hacking Suite Dirty Datajack (20) Mining Laser Peak State ------------ > --- POWER ------------ Light Ion Engine > --- PROPULSION ------- Light Treads Light Treads > --- UTILITY ---------- Small Storage Unit Sensor Array > --- WEAPON ----------- Assault Rifle Grenade Launcher > --- INVENTORY -------- Light Ion Engine Structural Scanner Hacking Suite Assault Rifle Dirty Datajack Mining Laser [Rating: 8] Favorites ----------- Power Light Ion Engine Engine Light Ion Engine Propulsion Light Treads Treads Light Treads Utility Small Storage Unit Device Sensor Array Storage Small Storage Unit Weapon Assault Rifle Ballistic Gun Assault Rifle Launcher Grenade Launcher Special Melee Weapon Datajack Build | -11 -10 -10 ------- Run | Yrd Mat Sub Slots Evolved . | . . . Power . | . . . Propulsion . | . . . Utility . | . . . Weapon . | . . . Parts Attached 23 | 6 16 1 Power 2 | 1 1 . Engine 2 | 1 1 . Core . | . . . Reactor . | . . . Propulsion 3 | 2 1 . Treads 3 | 2 1 . Leg . | . . . Wheel . | . . . Hover . | . . . Flight . | . . . Utility 2 | 1 1 . Device 1 | . 1 . Storage 1 | 1 . . Processor . | . . . Hackware . | . . . Protection . | . . . Artifact . | . . . Weapon 16 | 2 13 1 Energy Gun . | . . . Energy Cannon . | . . . Ballistic Gun 9 | 2 6 1 Ballistic Cannon . | . . . Launcher 5 | . 5 . Special Weapon . | . . . Impact Weapon . | . . . Slashing Weapon . | . . . Piercing Weapon . | . . . Special Melee Weapon 2 | . 2 . Unidentified Prototypes . | . . . Parts Lost 6 | . . 6 Power 1 | . . 1 Propulsion 2 | . . 2 Utility . | . . . Weapon 3 | . . 3 Highest Loss Streak 5 | . . 5 To Critical Strikes . | . . . Average Slot Usage (%) 95 | . 98 74 Engine 13 | . 14 9 Treads 26 | . 27 17 Device 13 | . 13 14 Storage 14 | . 14 14 Ballistic Gun 17 | . 18 9 Launcher 7 | . 7 8 Special Melee Weapon 1 | . 1 . Peak Build Rating 8 | 6 7 8 Average Rating 6 | 5 6 6 On Entrance 4 | . 6 7 Naked Turns . | . . . Heaviest Build 14 | 12 14 14 Greatest Support 40 | 40 40 40 Greatest Overweight (x) 2 | . . 2 Average Overweight (x) . | . . . Largest Inventory Capacity 8 | 8 8 8 Average Capacity 7 | 7 8 8 Most Carried 6 | 1 6 6 Average Carried 4 | . 4 5 Final Capacity 8 | 8 8 8 Final Carried 6 | 1 6 5 Class Distribution -------------------- 100% | Mutant Dominant Class ---------------- Mutant | -10/Materials Mutant | -10/Subcaves Resources | -11 -10 -10 ----------- Run | Yrd Mat Sub Matter Collected 594 | 193 399 2 Remotely . | . . . Salvage Created 557 | . 510 47 Parts 44 | . 41 3 Haulers Intercepted 2 | . 2 . Recyclers Shooed 1 | . 1 . Parts Field Recycled . | . . . Retrieved Matter . | . . . Parts Self-Destructed 4 | . . 4 Prevented . | . . . Kills | -11 -10 -10 ------- Run | Yrd Mat Sub Combat Hostiles Destroyed 21 | . 15 6 Guns 5 | . 3 2 AOE 16 | . 12 4 Classes Destroyed 9 | . 8 1 Worker 1 | . 1 . Builder 1 | . 1 . Tunneler 1 | . 1 . Hauler 2 | . 2 . Operator 2 | . 2 . Watcher 2 | . 2 . Swarmer 10 | . 6 4 Grunt 9 | . 9 . Subdweller 2 | . . 2 Best Kill Streak 6 | . 6 4 Combat Bots Only 4 | . 3 4 Max Kills in Single Turn 3 | . 3 3 Gunslinging . | . . . Exploded 3 | . 2 3 Melee . | . . . Uniques/NPCs Destroyed . | . . . Combat | -11 -10 -10 -------- Run | Yrd Mat Sub Hostile Shots Fired 123 | . 53 70 Missed 46 | . 17 29 Damage Taken 1218 | . 483 735 Core 255 | . 70 185 Absorbed by Shields . | . . . Regen/Repaired (Parts) 171 | . 171 . Core Remaining (%) 100 | 100 . . Volleys Fired 57 | . 45 12 Largest 2 | . 2 2 Hottest 50 | . 50 50 Shots Fired 89 | . 66 23 Gun 59 | . 47 12 Cannon . | . . . Launcher 30 | . 19 11 Special . | . . . Kinetic 59 | . 47 12 Thermal . | . . . Explosive 30 | . 19 11 Electromagnetic . | . . . Robot Hit Streak 7 | . 7 5 Robot Miss Streak 3 | . 3 1 Penetration Max . | . . . Secondary Targets . | . . . Shots Hit Robots 47 | . 39 8 Core Hits 43 | . 35 8 Critical Kills . | . . . Critical Parts Destroyed 1 | . 1 . Critical Strikes 1 | . 1 . Destroy 1 | . 1 . Melee Attacks 5 | . 5 . Impact . | . . . Slashing . | . . . Piercing . | . . . Sneak Attacks 3 | . 3 . Combat Hostiles . | . . . Follow-up Attacks . | . . . Damage Inflicted 2214 | . 1496 718 Guns 488 | . 441 47 Cannons . | . . . Explosions 1726 | . 1055 671 Melee . | . . . Ramming . | . . . Kinetic 488 | . 441 47 Thermal 82 | . 82 . Explosive 1644 | . 973 671 Electromagnetic . | . . . Impact . | . . . Slashing . | . . . Piercing . | . . . Highest Corruption . | . . . Average Corruption . | . . . Corruption Purged . | . . . Corruption Blocked . | . . . Overload Shots . | . . . Overflow Damage 55 | . 37 18 Projectiles . | . . . Explosions 55 | . 37 18 Melee . | . . . Knockbacks . | . . . Impact . | . . . Kinetic . | . . . Secondary . | . . . Self-Inflicted Damage 143 | . 122 21 Shots 5 | . 4 1 Rammed . | . . . Targets Rammed . | . . . Kicked . | . . . Crushed . | . . . Highest Temperature 20 | . 20 . Average Temperature 5 | . 5 . Received Heat Transfer 372 | . 174 198 Siege Activations . | . . . Robots Corrupted . | . . . Combat Hostiles . | . . . Parts Fried . | . . . Impact Corruptions . | . . . Robots Melted . | . . . Combat Hostiles . | . . . Parts Melted . | . . . Heat Transferred 100 | . 100 . Parts Sabotaged . | . . . Parts Stolen . | . . . Parts Stripped . | . . . Power Chain Reactions . | . . . Alert | -11 -10 -10 ------- Run | Yrd Mat Sub Peak Influence 302 | . 302 . Initial . | . . . Average 187 | . 197 . Maximum Alert Level 1 | . 1 . Low Security (%) 46 | 100 43 . Level 1 53 | . 56 . Level 2 . | . . . Level 3 . | . . . Level 4 . | . . . Level 5 . | . . . High Security . | . . . Max Security . | . . . Squads Dispatched 4 | . 4 . Investigation 2 | . 2 . Extermination . | . . . Reinforcement 2 | . 2 . Assault . | . . . Garrison . | . . . Intercept . | . . . Searches Triggered . | . . . Construction Impeded . | . . . Haulers Reinforced . | . . . Active Scanning Responses . | . . . Cargo Convoy Interrupts . | . . . Stealth | -11 -10 -10 --------- Run | Yrd Mat Sub Distress Signals 2 | . 2 . Communications Jammed . | . . . Distress Signals . | . . . Times Spotted 38 | . 24 14 Peak Tracking Total 6 | . 4 6 Tactical Retreats 4 | . 2 2 Traps | -11 -10 -10 ------- Run | Yrd Mat Sub Traps Triggered 1 | . 1 . Indirectly . | . . . Trap Hack Attempts . | . . . Triggered . | . . . Disarmed . | . . . Reprogrammed . | . . . Reused . | . . . Traps Extracted . | . . . Installed . | . . . Triggered . | . . . Machines | -11 -10 -10 ---------- Run | Yrd Mat Sub Machines Disabled 7 | . 6 1 Max in Single Turn 2 | . 2 1 Machines Repaired . | . . . Machines Dismantled . | . . . Machines Sabotaged . | . . . Overloaded Fab Kills . | . . . Hacking | -11 -10 -10 --------- Run | Yrd Mat Sub Machines Accessed 7 | . 7 . Terminals 5 | . 5 . Fabricators . | . . . Repair Stations 1 | . 1 . Recycling Units 1 | . 1 . Scanalyzers . | . . . Garrison Access . | . . . Total Hacks 20 | . 20 . Successful 11 | . 11 . Failed 9 | . 9 . Catastrophic 2 | . 2 . Database Lockouts . | . . . Manual 13 | . 13 . Terminals 13 | . 13 . Fabricators . | . . . Repair Stations 4 | . 4 . Recycling Units 3 | . 3 . Scanalyzers . | . . . Garrison Access . | . . . Terminal Hacks 2 | . 2 . Robot Analysis 2 | . 2 . Fabricator Hacks . | . . . Repair Station Hacks 4 | . 4 . Scan Component 2 | . 2 . Repair 2 | . 2 . Recycling Unit Hacks 2 | . 2 . Process 1 | . 1 . Report Inventory 1 | . 1 . Scanalyzer . | . . . Garrison Access Hacks . | . . . Unauthorized Hacks 3 | . 3 . Terminals 3 | . 3 . Botnet 1 | . 1 . Operators 2 | . 2 . Fabricators . | . . . Repair Stations . | . . . Recycling Units . | . . . Scanalyzers . | . . . Garrison Access . | . . . Data Cores Recovered . | . . . Used . | . . . Hacking Detections 6 | . 6 . Full Trace Events 1 | . 1 . Feedback Events . | . . . Feedback Blocked . | . . . Robot Schematics Acquired . | . . . Robots Built . | . . . Authchips . | . . . Time . | . . . Total Robot Build Rating . | . . . Part Schematics Acquired . | . . . Parts Built . | . . . Authchips . | . . . Time . | . . . Total Part Build Rating . | . . . Parts Repaired 2 | . 2 . Time 52 | . 52 . Parts Recycled . | . . . Recycled Matter 216 | . 216 . Retrieved Matter . | . . . Retrieved Components . | . . . Parts Scanalyzed . | . . . Part Schematics Acquired . | . . . Parts Damaged . | . . . Bothacking | -11 -10 -10 ------------ Run | Yrd Mat Sub Used RIF Installer . | . . . Robots Hacked 2 | . 2 . Non-combat 2 | . 2 . Combat . | . . . Robot Hacks Applied 3 | . 3 . parse_system 1 | . 1 . no_distress 1 | . 1 . check_alert 1 | . 1 . Relay Couplers Released . | . . . Fabnet Peak Effective % . | . . . Robots Rewired . | . . . Allies Hacked . | . . . Hacks Repelled . | . . . Allies | -11 -10 -10 -------- Run | Yrd Mat Sub Total Allies . | . . . Largest Group . | . . . Highest-Rated Group . | . . . Highest-Rated Ally . | . . . Total Orders . | . . . Ally Attacks . | . . . Total Damage . | . . . Kills . | . . . Allies Corrupted . | . . . Allies Melted . | . . . Intel | -11 -10 -10 ------- Run | Yrd Mat Sub Robot Analysis Total 2 | . 2 . Derelict Logs Recovered 1 | . . 1 Drone Launches . | . . . Drone Recoveries . | . . . Exploration | -11 -10 -10 ------------- Run | Yrd Mat Sub Turns Passed 1830 | 78 1497 255 Spaces Moved 890 | 45 708 137 Core 56 | 3 . 53 Treads 834 | 42 708 84 Legs . | . . . Wheels . | . . . Hover . | . . . Flight . | . . . Fastest Speed 50 | 50 160 100 Average Speed 156 | 152 160 139 Slowest Speed 160 | 160 160 160 Overloaded Moves . | . . . Propulsion Burnouts . | . . . Robots Hopped . | . . . Cave-ins Triggered . | . . . Exploration Rate (%) 32 | 3 84 10 Regions Visited 2 Branch Regions 1 Pre-discovered Areas . | . . . Known Exits Taken . | . . . Unknown Exits Taken 2 | 1 1 . Scrap Searched . | . . . Spaces Dug . | . . . Terrain Destroyed 168 | . 127 41 Melee . | . . . Projectile . | . . . AOE 168 | . 127 41 Terrain Rammed . | . . . Walls Destroyed . | . . . Machines Disabled . | . . . Actions | -11 -10 -10 --------- Run | Yrd Mat Sub Total 1228 | 51 998 179 Wait 244 | . 217 27 Move 888 | 44 707 137 Hop . | . . . Pick Up 7 | 1 5 1 Fast Attach 11 | 6 5 . Attach 2 | . 1 1 Detach 1 | . 1 . Swap 10 | . 10 . Drop 3 | . 2 1 Fire 57 | . 45 12 Melee 5 | . 5 . Ram . | . . . Kick . | . . . Crush . | . . . Escape Stasis . | . . . Rewire . | . . . Trap . | . . . Miscellaneous . | . . . Route ------- -11/Scrapyard -10/Materials (discovered 5 exits: [*Mat x2] / [*Min x2] / [*Sub]) -10/Subcaves (discovered 1 exit: [*Rec]) History --------- Turn | Location | Event 28 | -11/Scrapyard | Discovered new exit (range 16) 79 | -11/Scrapyard | Entered Materials 327 | -10/Materials | Build established: Mutant 696 | -10/Materials | Discovered new exit (range 13) 713 | -10/Materials | Discovered new exit (range 15) 878 | -10/Materials | Discovered new exit (range 7) 1034 | -10/Materials | Discovered new exit (range 16) 1182 | -10/Materials | Repaired Grenade Launcher 1210 | -10/Materials | Repaired Lgt. Treads 1525 | -10/Materials | Discovered new exit (range 5) 1576 | -10/Materials | Entered Subcaves 1577 | -10/Subcaves | Ambushed by Subdwellers from Twisted Machinery 1610 | -10/Subcaves | Learned Materials emergency access door positions 1645 | -10/Subcaves | Discovered new exit (range 15) 1737 | -10/Subcaves | Ambushed by Subdweller buried in earth 1753 | -10/Subcaves | Core integrity fell below 50% 1775 | -10/Subcaves | Lost 5 parts (1p2n2w) 1827 | -10/Subcaves | Core integrity fell below 20% 1831 | -10/Subcaves | Destroyed by 00-Z05(R) with Subdweller Shrapnel Launcher Last Messages --------------- Acquired Dirty Datajack. Acquired derelict log, extracted data. Data stored: Materials emergency access points. The unstable cave ceiling collapses. Acquired 2 matter. The unstable cave ceiling collapses. Destroyed Flight Unit. S-10 Pest destroyed. Machine disabled. S-10 Pest destroyed. EXIT=FOUND Flight Unit fries itself beyond repair. Lgt. Treads destroyed. TU-H7S(R): "GOODGOOD!" Grenade Launcher destroyed. Assault Rifle destroyed. Lgt. Ion Engine destroyed. Lgt. Treads destroyed. Autobeam fries itself beyond repair. Assault Rifle destroyed. Map ----- +----------------------------------------------------+ | ?????????????????????????????????????????????????? | | ?????????????????????????????????????????????????? | | ?????????????????????????????????????????????????? | | ?????????????????????????????????????????????????? | | ?????????????????????????????????????????????????? | | ??????###?????######???####??###?????????????????? | | ?????## #### #???# ### ##????????????????? | | ?????? ###?# #????????????????? | | ??????????? ### #????????????????? | | ????????????????# # ##????????????????? | | ????????????????## ##?????????????????? | | ?????????????????# / ###?????????????????? | | ?????????????????## # ##?????????????????? | | ??????????????????## # #?????????????????? | | ???#??????????????# # ##????????????????? | | ?## ??????????????## # " #????????????????? | | ## ??????????????## ## " ##???????????????? | | ??????????????# R### "" ##??????????????? | | ??????????????## R "" #???????????? | | #?####???????#### ??????????? | | # ### #####??## ## ### ???????????? | | # ## #### ####??? ##???????????? | | # ## ## ## R #????? #????????????? | | ### ### #???????????????????? | | ## ##?# #???????????????????? | | ### ##??## @ #???????????????????? | | ##?## #????# #???????????????????? | | ##???###???" #?????????????????? | | ##????????# ;#????????????????? | | #????????# % % ;#????????????????? | | ##????????#" ; #???????????????? | | ### #?????????#" ; #???????????????? | | ##?## #?????????#""" ;##???????????????? | | ##???# #????????####;<;;;;;#????????????????? | | ##???# #???????????##### #????????????????? | | ###?## #????????????????###????????????????? | | "#??## ##???????????????????????????????????? | | #???####????????????????????????????????????? | | ##??????????????????????????????????????????? | | #??????????????????????????????????????????? | | ##??????????????????????????????????????????? | | "#???????????????????????????????????????????? | | #???????????????????????????????????????????? | | #???????????????????????????????????????????? | | " #???????????????????????????????????????????? | | "##???????????????????????????????????????????? | | ###????????????????????????????????????????????? | | #??????????????????????????????????????????????? | | ##??????????????????????????????????????????????? | | ???????????????????????????????????????????????? | +----------------------------------------------------+ Best States ------------- Heat Dissipation 25 Energy Generation 10 Energy Capacity 125 Matter Stores 233 Matter Capacity 300 Sight Range 16 Robot Scan Range 14 Terrain Scan Density 10 Evasion (%) 40 Recoil Reduction 2 Item Schematics ----------------- None Robot Schematics ------------------ None Fabricated ------------ Nothing Alien Tech Used ----------------- None Achievements -------------- None Challenges ------------ None Game ------ Seed TripodRingTerrabomb Manual? 0 Play Time 00:16:27 Cumulative 47.0 hours Start 2024.10.05 @ 14:59:45 End 2024.10.05 @ 15:13:40 Sessions 1 Manual Loads 0 Difficulty Rogue Special Mode None Game No. 60 Rogue 60 Adventurer 0 Explorer 0 Win Type - Total 0 Types 0/0/0/0/0/0/0/0/0 Lore% 29 Gallery% 40 Achievement% 35 Wizard Run 0 Options --------- Layout 0 ASCII 0 Keyboard 0 Movement Mouse Keybinds 0 Fullscreen 1 Font 18/SmallcapsGlow Map View 76x50 Zoom Use 0% Tactical HUD 0 Map Filters NONE Filters NONE Steam 0 RUN: 2c56262a-3ed8-49a8-adda-114a34c89357